[Event "Turkish Club Cup 2019"]
[Site "Konya"]
[Date "2019.07.17"]
[Round "2"]
[White "Alev, Gonulden Seda"]
[Black "Koc, Azra Ece"]
[Result "0-1"]
[ECO "B13"]
[WhiteElo "1579"]
[BlackElo "1527"]
[Annotator "NA"]
[PlyCount "54"]
[EventDate "2019.07.16"]
[EventType "team-tourn"]
[EventCountry "TUR"]
[SourceTitle "playchess.com"]
[Source "ChessBase"]
[SourceQuality "1"]
[TimeControl "5400+30"]

1. e4 {[%emt 0:00:30]} c6 {[%emt 0:00:30]} 2. d4 {[%emt 0:00:30]} d5 {[%emt 0:00:30]} 3. exd5 {[%emt 0:00:30]} cxd5 {[%emt 0:00:30]} 4. Bd3 {[%emt 0:00:30]} Nc6 {[%emt 0:00:30]} 5. c3 {[%emt 0:00:30]} Qc7 {[%emt 0:00:30]} 6. h3 {[%emt 0:00:00]} Nf6 {[%emt 0:00:00]} 7. Nf3 {[%emt 0:04:00]} e6 {[%emt 0:03:00]} 8. O-O {[%emt 0:02:30]} Bd6 {[%emt 0:01:30]} 9. Re1 {[%emt 0:04:30]} Bd7 {[%emt 0:04:30]} 10. Qe2 {[%emt 0:02:30]} O-O-O {[%emt 0:06:30]} 11. Ne5 {[%emt 0:01:30]} Be8 {[%emt 0:15:30]} 12. b4 {[%emt 0:08:30]} Bxe5 {[%emt 0:10:30]} 13. dxe5 {[%emt 0:00:00]} Nd7 {[%emt 0:04:30]} 14. f4 {[%emt 0:01:00]} Nb6 {[%emt 0:11:30]} 15. a4 {[%emt 0:03:30]} d4 {[%emt 0:07:30]} 16. a5 {[%emt 0:20:30]} Nd5 {[%emt 0:00:30]} 17. cxd4 {[%emt 0:23:30]} Ndxb4 {[%emt 0:06:30]} 18. a6 {[%emt 0:08:10]} b6 {[%emt 0:04:30]} 19. Bb2 {[%emt 0:05:30]} Nxd4 {[%emt 0:02:02]} 20. Bxd4 {[%emt 0:05:24]} Rxd4 {[%emt 0:00:12]} 21. Be4 {[%emt 0:00:00]} Qc5 {[%emt 0:06:10]} 22. Qe3 {[%emt 0:00:58]} Rc4 {[%emt 0:01:28]} 23. Nd2 {[%emt 0:04:31]} Qxe3+ {[%emt 0:04:22]} 24. Rxe3 {[%emt 0:00:04]} Rc7 {[%emt 0:00:50]} 25. Bb7+ {[%emt 0:02:05]} Kb8 {[%emt 0:00:45]} 26. Re4 {[%emt 0:00:37]} Nd5 {[%emt 0:02:41]} 27. Rd1 {[%emt 0:01:04]} Nc3 {[%emt 0:00:52]} 0-1

[Event "Turkish Club Cup 2019"]
[Site "Konya"]
[Date "2019.07.17"]
[Round "2"]
[White "Gulceken, Sumeyye"]
[Black "Bas, Selin"]
[Result "0-1"]
[ECO "E80"]
[WhiteElo "1535"]
[BlackElo "1286"]
[Annotator "NA"]
[PlyCount "152"]
[EventDate "2019.07.16"]
[EventType "team-tourn"]
[EventCountry "TUR"]
[SourceTitle "playchess.com"]
[Source "ChessBase"]
[SourceQuality "1"]
[TimeControl "5400+30"]

1. d4 {[%emt 0:00:30]} Nf6 {[%emt 0:00:30]} 2. c4 {[%emt 0:00:30]} g6 {[%emt 0:00:30]} 3. Nc3 {[%emt 0:00:30]} Bg7 {[%emt 0:00:30]} 4. e4 {[%emt 0:00:30]} d6 {[%emt 0:00:00]} 5. f3 {[%emt 0:00:00]} c6 {[%emt 0:00:00]} 6. Bd3 {[%emt 0:00:00]} Nbd7 {[%emt 0:01:30]} 7. Be3 {[%emt 0:02:30]} Qc7 {[%emt 0:03:30]} 8. Nge2 {[%emt 0:01:30]} e5 {[%emt 0:01:30]} 9. Rc1 {[%emt 0:10:30]} exd4 {[%emt 0:04:30]} 10. Bxd4 {[%emt 0:03:30]} Ne5 {[%emt 0:03:30]} 11. O-O {[%emt 0:05:30]} O-O {[%emt 0:01:30]} 12. b3 {[%emt 0:09:30]} Nxd3 {[%emt 0:02:30]} 13. Qxd3 {[%emt 0:02:30]} Be6 {[%emt 0:09:30]} 14. Rfd1 {[%emt 0:05:30]} b6 {[%emt 0:06:30]} 15. Be3 {[%emt 0:03:30]} Rfd8 {[%emt 0:03:30]} 16. Qc2 {[%emt 0:07:30]} Qb7 {[%emt 0:05:30]} 17. Nd4 {[%emt 0:07:30]} Rac8 {[%emt 0:10:30]} 18. Nxe6 {[%emt 0:02:30]} fxe6 {[%emt 0:00:30]} 19. Rd3 {[%emt 0:02:30]} Rd7 {[%emt 0:07:30]} 20. Rcd1 {[%emt 0:06:30]} d5 {[%emt 0:03:30]} 21. e5 {[%emt 0:02:30]} Ne8 {[%emt 0:03:30]} 22. f4 {[%emt 0:02:30]} Bh6 {[%emt 0:03:30]} 23. Qe2 {[%emt 0:02:30]} Rf7 {[%emt 0:05:30]} 24. g3 {[%emt 0:04:28]} Ng7 {[%emt 0:03:04]} 25. Bf2 {[%emt 0:01:31]} Rcf8 {[%emt 0:04:11]} 26. cxd5 {[%emt 0:02:05]} cxd5 {[%emt 0:02:27]} 27. Nb5 {[%emt 0:02:02]} Ne8 {[%emt 0:00:16]} 28. Nd4 {[%emt 0:02:54]} Ng7 {[%emt 0:02:55]} 29. Qg4 {[%emt 0:01:30]} Qd7 {[%emt 0:07:48]} 30. Be1 {[%emt 0:05:46]} Nf5 {[%emt 0:00:26]} 31. Nxf5 {[%emt 0:01:29]} Rxf5 {[%emt 0:00:17]} 32. Bb4 {[%emt 0:02:39]} Rc8 {[%emt 0:00:46]} 33. Qf3 {[%emt 0:00:56]} Bf8 {[%emt 0:00:51]} 34. Bxf8 {[%emt 0:00:47]} Rfxf8 {[%emt 0:00:13]} 35. Qg4 {[%emt 0:00:00]} Qf7 {[%emt 0:01:07]} 36. Qf3 {[%emt 0:00:46]} Rc2 {[%emt 0:00:47]} 37. R3d2 {[%emt 0:01:00]} Rfc8 {[%emt 0:00:17]} 38. Qd3 {[%emt 0:00:00]} Qf5 {[%emt 0:00:59]} 39. Qxf5 {[%emt 0:00:08]} gxf5 {[%emt 0:00:05]} 40. Kf2 {[%emt 0:00:55]} R8c3 {[%emt 0:00:35]} 41. h3 {[%emt 0:00:22]} h5 {[%emt 0:00:26]} 42. Kg2 {[%emt 0:00:36]} Kf7 {[%emt 0:00:20]} 43. Kf2 {[%emt 0:00:34]} Ke7 {[%emt 0:00:13]} 44. Kg2 {[%emt 0:00:31]} Kd7 {[%emt 0:00:26]} 45. b4 {[%emt 0:00:25]} Kc6 {[%emt 0:01:05]} 46. a4 {[%emt 0:00:23]} b5 {[%emt 0:01:08]} 47. a5 {[%emt 0:00:25]} Rxd2+ {[%emt 0:00:56]} 48. Rxd2 {[%emt 0:00:30]} Rc4 {[%emt 0:00:08]} 49. Rb2 {[%emt 0:00:00]} d4 {[%emt 0:00:44]} 50. Kf2 {[%emt 0:00:17]} Kd5 {[%emt 0:00:34]} 51. Kf3 {[%emt 0:01:50]} Rc3+ {[%emt 0:00:30]} 52. Kf2 {[%emt 0:00:00]} Ke4 {[%emt 0:00:31]} 53. Rb1 {[%emt 0:00:38]} Rf3+ {[%emt 0:01:14]} 54. Kg2 {[%emt 0:00:15]} d3 {[%emt 0:00:06]} 55. Re1+ {[%emt 0:01:08]} Re3 {[%emt 0:00:08]} 56. Rd1 {[%emt 0:00:06]} Re2+ {[%emt 0:00:44]} 57. Kf1 {[%emt 0:00:42]} Ke3 {[%emt 0:00:00]} 58. Ra1 {[%emt 0:00:08]} Rf2+ {[%emt 0:00:44]} 59. Kg1 {[%emt 0:00:40]} d2 {[%emt 0:01:40]} 60. Ra3+ {[%emt 0:00:56]} Ke2 {[%emt 0:00:24]} 61. Ra2 {[%emt 0:00:00]} Ke1 {[%emt 0:01:14]} 62. Ra1+ {[%emt 0:00:41]} Ke2 {[%emt 0:00:07]} 63. Ra2 {[%emt 0:00:20]} Kf3 {[%emt 0:00:38]} 64. Ra3+ {[%emt 0:00:32]} Ke4 {[%emt 0:00:23]} 65. Ra1 {[%emt 0:00:57]} Re2 {[%emt 0:00:21]} 66. Kf1 {[%emt 0:00:08]} Re1+ {[%emt 0:00:11]} 67. Rxe1+ {[%emt 0:00:00]} dxe1=Q+ {[%emt 0:00:33]} 68. Kxe1 {[%emt 0:00:00]} Kf3 {[%emt 0:00:00]} 69. g4 {[%emt 0:00:00]} hxg4 {[%emt 0:00:00]} 70. h4 {[%emt 0:00:00]} g3 {[%emt 0:00:32]} 71. Kf1 {[%emt 0:00:00]} Kxf4 {[%emt 0:00:00]} 72. Kg2 {[%emt 0:00:00]} Kg4 {[%emt 0:00:18]} 73. h5 {[%emt 0:00:00]} Kxh5 {[%emt 0:00:23]} 74. Kxg3 {[%emt 0:00:00]} Kg5 {[%emt 0:00:09]} 75. Kf3 {[%emt 0:00:04]} f4 {[%emt 0:00:23]} 76. Ke4 {[%emt 0:02:17]} Kg4 {[%emt 0:00:55]} 0-1

[Event "Turkish Club Cup 2019"]
[Site "Konya"]
[Date "2019.07.17"]
[Round "2"]
[White "Mutlu, Bunyamin"]
[Black "Daghan, Devran"]
[Result "0-1"]
[ECO "B20"]
[WhiteElo "1511"]
[BlackElo "2023"]
[Annotator "NA"]
[PlyCount "106"]
[EventDate "2019.07.16"]
[EventType "team-tourn"]
[EventCountry "TUR"]
[SourceTitle "playchess.com"]
[Source "ChessBase"]
[SourceQuality "1"]
[TimeControl "5400+30"]

1. e4 {[%emt 0:00:30]} c5 {[%emt 0:00:30]} 2. b3 {[%emt 0:00:30]} Nc6 {[%emt 0:00:30]} 3. Bb2 {[%emt 0:00:30]} e6 {[%emt 0:00:30]} 4. Nc3 {[%emt 0:02:30]} a6 {[%emt 0:00:00]} 5. a4 {[%emt 0:02:30]} Nf6 {[%emt 0:06:00]} 6. Nf3 {[%emt 0:00:30]} Qc7 {[%emt 0:04:30]} 7. Bc4 {[%emt 0:07:30]} Be7 {[%emt 0:13:30] B20: Sicilian: Unusual White 2nd moves} (7... b6 8. O-O Bd6 9. h3 Bb7 10. Re1 O-O 11. e5 Nxe5 12. Rxe5 Bxf3 13. Re2 Bxe2 14. Qxe2 Be5 15. Bxa6 {0-1 (60) Babits,A (2122)-Szuhai,B (2054) Hungary 2013}) 8. O-O {[%emt 0:04:30]} Ng4 $146 {[%emt 0:00:30]} ({Predecessor:} 8... O-O 9. d4 cxd4 10. Nxd4 Rd8 11. Nxc6 dxc6 12. Qe2 Rb8 13. Rad1 b5 14. Rxd8+ Bxd8 15. Bd3 {½-½ (29) Zisin,O (1836)-Pivina,M (1678) Voronezh 2014}) 9. Ne2 {[%emt 0:14:30]} Bf6 {[%emt 0:04:30]} 10. Bxf6 {[%emt 0:03:30]} Nxf6 {[%emt 0:00:30]} 11. Nc3 {[%emt 0:01:30]} Nd4 {[%emt 0:05:30]} 12. h3 {[%emt 0:05:30]} O-O {[%emt 0:09:30]} 13. Re1 {[%emt 0:05:30]} d6 {[%emt 0:06:30]} 14. e5 {[%emt 0:12:30]} Nxf3+ {[%emt 0:05:30]} 15. Qxf3 {[%emt 0:00:30]} dxe5 {[%emt 0:00:30]} 16. Ne4 {[%emt 0:02:30]} Nd5 {[%emt 0:05:30]} 17. Qg3 {[%emt 0:10:30]} f5 {[%emt 0:06:30]} 18. Bxd5 {[%emt 0:02:30]} exd5 {[%emt 0:00:00]} 19. Nc3 {[%emt 0:00:30]} Re8 $11 {[%emt 0:13:23]} 20. Nxd5 {[%emt 0:04:24]} Qd6 {[%emt 0:00:10]} 21. c4 {[%emt 0:03:04]} Bd7 {[%emt 0:01:13]} 22. Rad1 {[%emt 0:08:57]} Bc6 {[%emt 0:01:18]} 23. Nb6 {[%emt 0:04:38]} Rad8 {[%emt 0:00:47]} 24. a5 {[%emt 0:00:14]} Re6 {[%emt 0:00:18]} 25. Qc3 {[%emt 0:01:31]} Rg6 {[%emt 0:02:07]} 26. g3 {[%emt 0:01:10]} e4 {[%emt 0:00:08]} 27. Nd5 {[%emt 0:00:12]} Bxd5 {[%emt 0:01:07]} 28. cxd5 {[%emt 0:00:30]} Qxd5 {[%emt 0:00:30]} 29. Qc4 {[%emt 0:00:00]} Kh8 {[%emt 0:01:00]} 30. Qxd5 {[%emt 0:00:54]} Rxd5 {[%emt 0:00:30]} 31. d3 {[%emt 0:00:30]} Rgd6 {[%emt 0:00:30]} 32. Re3 {[%emt 0:00:30]} Kg8 {[%emt 0:00:30]} 33. Kf1 {[%emt 0:00:30]} exd3 {[%emt 0:00:30]} 34. Re7 {[%emt 0:00:06]} Rd7 {[%emt 0:00:48]} 35. Rxd7 {[%emt 0:00:30]} Rxd7 {[%emt 0:00:00]} 36. Ke1 {[%emt 0:00:13]} Kf7 {[%emt 0:00:44]} 37. Kd2 {[%emt 0:00:21]} Rd4 {[%emt 0:00:00]} 38. Kc3 {[%emt 0:00:47]} Ke6 {[%emt 0:00:00]} 39. Rxd3 {[%emt 0:00:00]} Rxd3+ {[%emt 0:00:11]} 40. Kxd3 {[%emt 0:00:06]} Kd5 {[%emt 0:00:30]} 41. f3 {[%emt 0:00:30]} b5 {[%emt 0:00:30]} 42. axb6 {[%emt 0:00:30]} Kc6 {[%emt 0:00:30]} 43. Kc4 {[%emt 0:00:30]} Kxb6 {[%emt 0:00:30]} 44. g4 {[%emt 0:00:30]} f4 {[%emt 0:00:30]} 45. Kd5 {[%emt 0:00:30]} Kb5 {[%emt 0:00:30]} 46. Ke4 {[%emt 0:00:30]} c4 {[%emt 0:00:30]} 47. bxc4+ {[%emt 0:00:30]} Kxc4 {[%emt 0:00:30]} 48. Kxf4 {[%emt 0:00:30]} a5 {[%emt 0:00:30]} 49. g5 {[%emt 0:00:30]} a4 {[%emt 0:00:30]} 50. g6 {[%emt 0:00:30]} hxg6 {[%emt 0:00:30]} 51. Kg5 {[%emt 0:00:30]} a3 {[%emt 0:00:30]} 52. Kxg6 {[%emt 0:00:30]} a2 {[%emt 0:00:30]} 53. Kxg7 {[%emt 0:01:21]} a1=Q+ {[%emt 0:00:00]} 0-1

[Event "Turkish Club Cup 2019"]
[Site "Konya"]
[Date "2019.07.17"]
[Round "2"]
[White "Incekara, Abuzer"]
[Black "Aydin, Ismail"]
[Result "0-1"]
[ECO "C14"]
[WhiteElo "1509"]
[BlackElo "1896"]
[Annotator "NA"]
[PlyCount "68"]
[EventDate "2019.07.16"]
[EventType "team-tourn"]
[EventCountry "TUR"]
[SourceTitle "playchess.com"]
[Source "ChessBase"]
[SourceQuality "1"]
[TimeControl "5400+30"]

1. e4 {[%emt 0:00:30]} e6 {[%emt 0:00:30]} 2. d4 {[%emt 0:00:30]} d5 {[%emt 0:00:30]} 3. Nc3 {[%emt 0:00:00]} Nf6 {[%emt 0:00:00]} 4. Bg5 {[%emt 0:00:00]} Be7 {[%emt 0:00:00]} 5. e5 {[%emt 0:00:30]} Nfd7 {[%emt 0:00:00]} 6. Bxe7 {[%emt 0:00:00]} Qxe7 {[%emt 0:00:00]} 7. f4 {[%emt 0:00:00]} O-O {[%emt 0:00:00]} 8. Nf3 {[%emt 0:00:30]} a6 {[%emt 0:00:00]} 9. Bd3 {[%emt 0:00:30]} f5 {[%emt 0:00:00]} 10. Qd2 {[%emt 0:01:30]} c5 {[%emt 0:00:00]} 11. dxc5 {[%emt 0:03:30]} Nxc5 {[%emt 0:00:30]} 12. O-O-O {[%emt 0:00:30]} Nc6 {[%emt 0:00:30]} 13. Ne2 {[%emt 0:02:30]} Bd7 {[%emt 0:00:00]} 14. Kb1 {[%emt 0:00:30]} Rac8 {[%emt 0:03:00]} 15. h3 {[%emt 0:08:30]} Ne4 {[%emt 0:05:30]} 16. Bxe4 {[%emt 0:02:30]} (16. Qe3 $14) 16... fxe4 $11 {[%emt 0:00:00]} 17. Nfd4 {[%emt 0:00:00]} Qc5 {[%emt 0:17:00]} 18. c3 {[%emt 0:01:00]} b5 {[%emt 0:00:30]} 19. g4 {[%emt 0:03:30]} b4 {[%emt 0:04:30]} 20. Nxc6 {[%emt 0:00:00]} bxc3 {[%emt 0:02:30]} 21. Qxc3 {[%emt 0:06:00]} Qxc3 {[%emt 0:04:30]} 22. Nxc3 {[%emt 0:01:30]} Bxc6 {[%emt 0:00:30]} 23. Ne2 {[%emt 0:03:30]} Bb5 {[%emt 0:04:30]} 24. Nd4 {[%emt 0:03:30]} Rxf4 {[%emt 0:03:30]} 25. Nxe6 {[%emt 0:00:30]} Rf2 {[%emt 0:00:30]} 26. Nd4 {[%emt 0:04:30]} Bd3+ {[%emt 0:00:30]} 27. Ka1 {[%emt 0:00:30]} Rc4 {[%emt 0:01:30]} 28. Nb3 {[%emt 0:16:30]} Kf7 {[%emt 0:10:30]} 29. Nc1 {[%emt 0:01:30]} Rxc1+ 30. Rxc1 {[%emt 0:00:30]} Ke6 {[%emt 0:07:00]} 31. Rc7 {[%emt 0:02:30]} e3 {[%emt 0:00:30]} 32. Rcc1 {[%emt 0:02:30]} Kxe5 {[%emt 0:00:30]} 33. b3 {[%emt 0:01:30]} d4 {[%emt 0:00:00]} 34. a4 {[%emt 0:09:30]} Bc2 {[%emt 0:01:00]} 0-1

[Event "Turkish Club Cup 2019"]
[Site "Konya"]
[Date "2019.07.17"]
[Round "2"]
[White "Yilmaz, Seyma"]
[Black "Simsek, Meltem"]
[Result "0-1"]
[ECO "A46"]
[WhiteElo "1500"]
[BlackElo "1684"]
[Annotator "NA"]
[PlyCount "84"]
[EventDate "2019.07.16"]
[EventType "team-tourn"]
[EventCountry "TUR"]
[SourceTitle "playchess.com"]
[Source "ChessBase"]
[SourceQuality "1"]
[TimeControl "5400+30"]

1. d4 {[%emt 0:00:30]} Nf6 {[%emt 0:00:30]} 2. Nf3 {[%emt 0:00:30]} c5 {[%emt 0:00:00]} 3. e3 {[%emt 0:00:00]} Qc7 {[%emt 0:00:00]} 4. Bd3 {[%emt 0:01:00]} e6 {[%emt 0:00:30]} 5. b3 {[%emt 0:00:30]} b6 {[%emt 0:00:30]} 6. Bb2 {[%emt 0:00:30]} Bb7 {[%emt 0:00:00]} 7. Nbd2 {[%emt 0:00:30]} d6 {[%emt 0:00:00]} 8. c4 {[%emt 0:00:30]} Nbd7 {[%emt 0:00:30]} 9. O-O {[%emt 0:00:30]} Be7 {[%emt 0:00:00]} 10. Rc1 {[%emt 0:01:30]} Rc8 {[%emt 0:01:00]} 11. Qe2 {[%emt 0:02:30]} Qb8 {[%emt 0:00:00]} 12. e4 {[%emt 0:01:30]} cxd4 {[%emt 0:01:00]} 13. Nxd4 {[%emt 0:01:30]} Nc5 {[%emt 0:00:00]} 14. Bb1 {[%emt 0:00:30]} Qa8 {[%emt 0:01:00]} 15. Rfe1 {[%emt 0:01:30]} O-O {[%emt 0:00:30]} 16. f4 {[%emt 0:04:30]} Rfe8 {[%emt 0:01:30]} 17. e5 {[%emt 0:01:30]} dxe5 {[%emt 0:00:30]} 18. fxe5 {[%emt 0:00:30]} Nfd7 {[%emt 0:01:30]} 19. Qh5 {[%emt 0:05:30]} g6 {[%emt 0:00:30]} 20. Qg4 {[%emt 0:00:30]} Bf8 {[%emt 0:00:30]} 21. Nb5 {[%emt 0:11:30]} Red8 {[%emt 0:06:30]} 22. Nd6 {[%emt 0:02:30]} Nxe5 {[%emt 0:11:30]} 23. Rxe5 {[%emt 0:10:30]} Rxd6 {[%emt 0:01:30]} 24. Rg5 {[%emt 0:17:30]} Rxd2 {[%emt 0:00:30]} 25. Bxg6 {[%emt 0:04:30]} Rxg2+ {[%emt 0:02:30]} 26. Qxg2 {[%emt 0:00:30]} Bxg2 {[%emt 0:00:30]} 27. Bh5+ {[%emt 0:00:30]} Bg7 {[%emt 0:00:30]} 28. Rxg7+ {[%emt 0:01:30]} Kf8 {[%emt 0:00:30]} 29. Rxf7+ {[%emt 0:01:30]} Kg8 {[%emt 0:05:30]} 30. Rg7+ {[%emt 0:01:30]} Kf8 {[%emt 0:00:30]} 31. Rxg2 {[%emt 0:01:30]} Qe4 {[%emt 0:04:30]} 32. Rf1+ {[%emt 0:01:30]} Ke7 {[%emt 0:00:00]} 33. Rf7+ {[%emt 0:04:30]} Kd6 {[%emt 0:01:00]} 34. Rd2+ {[%emt 0:00:30]} Nd3 {[%emt 0:01:30]} 35. Ba3+ {[%emt 0:00:30]} Rc5 {[%emt 0:01:30]} 36. Bxc5+ {[%emt 0:00:30]} bxc5 {[%emt 0:00:00]} 37. Rff2 {[%emt 0:03:49]} Kc7 {[%emt 0:05:00]} 38. Rfe2 {[%emt 0:03:23]} Qd4+ {[%emt 0:00:30]} 39. Kh1 {[%emt 0:01:27]} Qa1+ {[%emt 0:00:30]} 40. Kg2 {[%emt 0:00:09]} Nf4+ {[%emt 0:00:30]} 41. Kf3 {[%emt 0:00:22]} Nxh5 {[%emt 0:00:30]} 42. Rxe6 {[%emt 0:00:49]} Qc3+ {[%emt 0:00:00]} 0-1

[Event "Turkish Club Cup 2019"]
[Site "Konya"]
[Date "2019.07.17"]
[Round "2"]
[White "Kaynar, Mustafa Deniz"]
[Black "Kazik, Oguz Kagan"]
[Result "1-0"]
[ECO "B22"]
[WhiteElo "1483"]
[BlackElo "1706"]
[Annotator "NA"]
[PlyCount "102"]
[EventDate "2019.07.16"]
[EventType "team-tourn"]
[EventCountry "TUR"]
[SourceTitle "playchess.com"]
[Source "ChessBase"]
[SourceQuality "1"]
[TimeControl "5400+30"]

1. e4 {[%emt 0:00:30]} c5 {[%emt 0:00:30]} 2. c3 {[%emt 0:00:30]} Nf6 {[%emt 0:00:30]} 3. e5 {[%emt 0:00:30]} Nd5 {[%emt 0:00:00]} 4. d4 {[%emt 0:00:00]} cxd4 {[%emt 0:00:00]} 5. Qxd4 {[%emt 0:00:00]} Nb6 {[%emt 0:00:30]} 6. Nf3 {[%emt 0:01:30]} Nc6 {[%emt 0:00:30]} 7. Qe4 {[%emt 0:01:30]} g6 {[%emt 0:03:30]} 8. Be3 {[%emt 0:03:30]} Bg7 {[%emt 0:00:30]} 9. Nbd2 {[%emt 0:08:30]} O-O {[%emt 0:05:30]} 10. O-O-O {[%emt 0:05:30]} d5 {[%emt 0:19:30]} 11. exd6 {[%emt 0:12:30]} exd6 {[%emt 0:01:30]} 12. Qh4 {[%emt 0:02:30]} Qc7 {[%emt 0:10:30]} 13. Bd3 {[%emt 0:13:30]} Ne5 {[%emt 0:01:30]} 14. Bc2 {[%emt 0:23:30]} Nd5 {[%emt 0:07:30]} 15. Nxe5 {[%emt 0:11:17]} dxe5 {[%emt 0:05:30]} 16. Qc4 {[%emt 0:00:22]} Qxc4 {[%emt 0:02:30]} 17. Nxc4 {[%emt 0:00:08]} Nxe3 {[%emt 0:00:30]} 18. Nxe3 {[%emt 0:00:11]} Be6 {[%emt 0:00:30]} 19. Nd5 {[%emt 0:02:48]} Rad8 {[%emt 0:05:30]} 20. Bb3 {[%emt 0:05:06]} Rd7 {[%emt 0:01:30]} 21. Ne3 {[%emt 0:01:32]} Bh6 {[%emt 0:05:30]} 22. Bxe6 {[%emt 0:01:09]} Rxd1+ {[%emt 0:00:30]} 23. Kxd1 {[%emt 0:00:25]} fxe6 {[%emt 0:01:30]} 24. Ke2 {[%emt 0:00:29]} Rd8 {[%emt 0:01:30]} 25. Rd1 {[%emt 0:00:07]} Rxd1 {[%emt 0:00:30]} 26. Kxd1 {[%emt 0:00:07]} b5 {[%emt 0:00:30]} 27. Kc2 {[%emt 0:01:23]} Kf7 {[%emt 0:01:30]} 28. Kb3 {[%emt 0:00:30]} Bf8 {[%emt 0:00:00]} 29. a4 {[%emt 0:00:05]} bxa4+ {[%emt 0:02:00]} 30. Kxa4 {[%emt 0:00:30]} Bc5 {[%emt 0:00:00]} 31. b4 {[%emt 0:00:14]} Bb6 {[%emt 0:00:00]} 32. Kb5 {[%emt 0:00:18]} Ke7 {[%emt 0:00:30]} 33. c4 {[%emt 0:00:18]} Bd4 {[%emt 0:01:30]} 34. Kc6 {[%emt 0:01:00]} h5 {[%emt 0:01:30]} 35. c5 {[%emt 0:00:13]} g5 {[%emt 0:00:30]} 36. Kb7 {[%emt 0:00:38]} Kd8 {[%emt 0:00:30]} 37. Kxa7 {[%emt 0:00:15]} Kc7 {[%emt 0:00:00]} 38. Ka6 {[%emt 0:02:32]} Kc6 {[%emt 0:01:00]} 39. Nc4 {[%emt 0:02:17]} Bxf2 {[%emt 0:01:30]} 40. Nxe5+ {[%emt 0:00:30]} Kd5 {[%emt 0:00:30]} 41. c6 {[%emt 0:00:38]} Kd6 {[%emt 0:01:30]} 42. Kb7 {[%emt 0:00:21]} Kxe5 {[%emt 0:00:30]} 43. c7 {[%emt 0:00:30]} Ke4 {[%emt 0:00:30]} 44. c8=Q {[%emt 0:00:00]} e5 {[%emt 0:00:00]} 45. Qc2+ {[%emt 0:00:10]} Ke3 {[%emt 0:00:00]} 46. Qc3+ {[%emt 0:00:22]} Ke2 {[%emt 0:00:00]} 47. Qxe5+ {[%emt 0:00:19]} Kf1 {[%emt 0:00:00]} 48. Qxg5 {[%emt 0:00:00]} h4 {[%emt 0:00:00]} 49. Qg4 {[%emt 0:00:50]} Kg1 {[%emt 0:00:00]} 50. g3 {[%emt 0:00:25]} hxg3 {[%emt 0:00:30]} 51. Qxg3+ {[%emt 0:00:00]} Bxg3 {[%emt 0:00:00]} 1-0

[Event "Turkish Club Cup 2019"]
[Site "Konya"]
[Date "2019.07.17"]
[Round "2"]
[White "Sancar, Alperen"]
[Black "Kara, Ali Barkin"]
[Result "0-1"]
[ECO "A47"]
[WhiteElo "1479"]
[BlackElo "1749"]
[Annotator "NA"]
[PlyCount "102"]
[EventDate "2019.07.16"]
[EventType "team-tourn"]
[EventCountry "TUR"]
[SourceTitle "playchess.com"]
[Source "ChessBase"]
[SourceQuality "1"]
[TimeControl "5400+30"]

1. d4 {[%emt 0:00:30]} Nf6 {[%emt 0:00:30]} 2. Bf4 {[%emt 0:00:30]} b6 {[%emt 0:00:30]} 3. e3 {[%emt 0:07:30]} Bb7 {[%emt 0:00:30]} 4. Nf3 {[%emt 0:00:00]} Nh5 {[%emt 0:00:30]} 5. Bg3 {[%emt 0:01:00]} Nxg3 {[%emt 0:00:30]} 6. hxg3 {[%emt 0:00:00]} e6 {[%emt 0:01:30]} 7. Nbd2 {[%emt 0:01:00]} Be7 {[%emt 0:05:30]} 8. Bd3 {[%emt 0:00:30]} h6 {[%emt 0:00:00]} 9. c3 {[%emt 0:00:30]} d5 {[%emt 0:00:00]} 10. Ne5 {[%emt 0:02:30]} a6 {[%emt 0:06:30]} 11. Qh5 {[%emt 0:01:30]} O-O {[%emt 0:05:30]} 12. O-O-O {[%emt 0:02:30]} Nd7 {[%emt 0:05:30]} 13. Ndf3 {[%emt 0:00:30]} Nf6 {[%emt 0:02:30]} 14. Qh3 {[%emt 0:01:30]} c5 {[%emt 0:05:30]} 15. Ng5 {[%emt 0:03:30]} Ne4 {[%emt 0:05:30]} 16. Bxe4 {[%emt 0:00:30]} dxe4 {[%emt 0:00:00]} 17. Nxe6 {[%emt 0:00:30]} Qd6 {[%emt 0:08:00]} 18. Nxf8 {[%emt 0:00:30]} Rxf8 {[%emt 0:04:30]} 19. Qd7 {[%emt 0:00:00]} cxd4 {[%emt 0:03:30]} 20. Qxd6 {[%emt 0:02:00]} Bxd6 {[%emt 0:00:30]} 21. cxd4 {[%emt 0:00:30]} Re8 {[%emt 0:01:30]} 22. Ng4 {[%emt 0:02:30]} f5 {[%emt 0:00:00]} 23. Nh2 {[%emt 0:00:30]} Bd5 {[%emt 0:00:00]} 24. Kb1 {[%emt 0:00:30]} b5 {[%emt 0:00:30]} 25. Nf1 {[%emt 0:01:30]} a5 {[%emt 0:00:30]} 26. Nd2 {[%emt 0:00:30]} a4 {[%emt 0:00:00]} 27. Rc1 {[%emt 0:04:30]} Kf7 {[%emt 0:04:00]} 28. Rc2 {[%emt 0:11:30]} Ke7 {[%emt 0:03:30]} 29. b3 {[%emt 0:05:30]} axb3 {[%emt 0:02:30]} 30. Nxb3 {[%emt 0:00:30]} Bc4 {[%emt 0:00:30]} 31. Nc5 {[%emt 0:05:30]} Bxc5 {[%emt 0:06:30]} 32. dxc5 {[%emt 0:01:30]} Bd3 {[%emt 0:01:30]} 33. Rhc1 {[%emt 0:00:30]} Kd7 {[%emt 0:00:30]} 34. Kb2 {[%emt 0:00:30]} Bxc2 {[%emt 0:00:30]} 35. Rxc2 {[%emt 0:00:30]} Kc6 {[%emt 0:00:00]} 36. Rd2 {[%emt 0:12:30]} Re7 {[%emt 0:03:00]} 37. Rc2 {[%emt 0:01:30]} Re5 {[%emt 0:00:30]} 38. a3 {[%emt 0:00:30]} Rd5 {[%emt 0:01:30]} 39. Kb3 {[%emt 0:03:30]} Rd1 {[%emt 0:01:30]} 40. Kb4 {[%emt 0:02:30]} Rb1+ {[%emt 0:01:30]} 41. Kc3 {[%emt 0:02:30]} Kxc5 {[%emt 0:00:30]} 42. Kd2+ {[%emt 0:02:30]} Kd6 {[%emt 0:00:30]} 43. Ke2 {[%emt 0:00:30]} Rb3 {[%emt 0:01:30]} 44. Ra2 {[%emt 0:01:30]} Rd3 {[%emt 0:02:30]} 45. Rd2 {[%emt 0:01:30]} Rd5 {[%emt 0:00:30]} 46. Rxd5+ {[%emt 0:03:25]} Kxd5 {[%emt 0:00:30]} 47. Kd2 {[%emt 0:00:30]} Kc4 {[%emt 0:00:00]} 48. Kc2 {[%emt 0:03:33]} h5 {[%emt 0:01:00]} 49. f3 {[%emt 0:00:30]} g5 {[%emt 0:01:52]} 50. f4 {[%emt 0:03:41]} g4 {[%emt 0:00:30]} 51. Kd2 {[%emt 0:00:30]} Kb3 {[%emt 0:00:00]} 0-1